bitfinex/quotes_BTCUSD_20241223
["timestamp","ask_amount","ask_price","bid_price","bid_amount"]
[1734990162061,0.0759,94160.0,94142.0,0.212445]
[1734990162266,0.0759,94160.0,94143.0,0.10504839]
[1734990162824,0.00101915,94144.0,94143.0,0.10504839]
[1734990163447,0.02501915,94144.0,94143.0,0.11004839]
[1734990163655,0.02501915,94144.0,94143.0,0.11198632]
[1734990164076,0.00201915,94144.0,94143.0,0.18798156]
[1734990164315,0.00201915,94144.0,94143.0,0.18798143]
[1734990164525,0.00201915,94144.0,94143.0,0.18798141]
[1734990164924,0.000171,94170.0,94163.0,0.212395]
[1734990165125,0.000171,94170.0,94163.0,0.21255309]
[1734990165351,0.000171,94170.0,94164.0,0.02125531]
[1734990165802,0.212384,94169.0,94163.0,0.00015809]
[1734990165962,0.023,94168.0,94150.0,0.10653811]
[1734990166164,0.024171,94170.0,94151.0,0.10504825]
[1734990166376,0.024171,94170.0,94159.0,0.212404]
[1734990166583,0.024171,94170.0,94161.0,0.212402]
[1734990166584,0.002171,94170.0,94161.0,0.212402]
[1734990166958,0.023,94169.0,94161.0,0.212402]
[1734990167188,0.001,94168.0,94162.0,0.212399]
[1734990167512,0.001171,94170.0,94160.0,0.10398632]
[1734990167649,0.023,94169.0,94160.0,0.10398632]
[1734990167866,0.001171,94170.0,94161.0,0.212402]
[1734990168105,0.000171,94170.0,94161.0,0.212402]
[1734990168308,0.001171,94170.0,94161.0,0.212402]
[1734990168508,0.001171,94170.0,94162.0,0.10504825]
[1734990168743,0.001171,94170.0,94167.0,0.212388]
[1734990168946,0.003171,94170.0,94169.0,0.212384]
[1734990169176,0.000171,94170.0,94169.0,0.31637032]
[1734990169375,0.003171,94170.0,94169.0,0.31637032]
[1734990170004,0.002171,94170.0,94169.0,0.31637032]
[1734990170861,0.000171,94170.0,94169.0,0.31637032]
[1734990171875,0.000171,94170.0,94169.0,0.31737032]
[1734990172208,0.001171,94170.0,94169.0,0.47237032]
[1734990172409,0.000171,94170.0,94169.0,0.46637032]
[1734990172626,0.000171,94170.0,94169.0,0.57335664]
[1734990172827,0.001171,94170.0,94169.0,0.57935664]
[1734990173042,0.000171,94170.0,94169.0,0.57035664]
[1734990173243,0.000171,94170.0,94169.0,0.46937032]
[1734990173449,0.001171,94170.0,94169.0,0.47537032]
[1734990173774,0.000171,94170.0,94169.0,0.48012427]
[1734990174429,0.001171,94170.0,94169.0,0.48712427]
[1734990174632,0.001171,94170.0,94169.0,0.48412427]
[1734990174810,0.001171,94170.0,94169.0,0.50159162]
[1734990175175,0.001171,94170.0,94169.0,0.50659162]
[1734990175176,0.002171,94170.0,94169.0,0.50659162]
[1734990175554,0.002171,94170.0,94169.0,1.04709162]
[1734990175754,0.001171,94170.0,94169.0,1.04009162]
[1734990176283,0.001171,94170.0,94169.0,1.04409162]
[1734990176679,0.001171,94170.0,94169.0,1.04009162]
[1734990176864,0.001171,94170.0,94169.0,1.02262427]
[1734990177467,0.002171,94170.0,94169.0,1.03162427]
[1734990178392,0.00079986,94170.0,94169.0,1.03162427]
[1734990178591,0.00079986,94170.0,94169.0,1.02662427]
[1734990178793,0.00179986,94170.0,94169.0,1.13561059]
[1734990179395,0.00079986,94170.0,94169.0,1.13061059]
[1734990179554,0.00179986,94170.0,94169.0,1.13561059]
[1734990180247,0.00188536,94170.0,94169.0,1.13561059]
[1734990181794,0.00188536,94170.0,94169.0,1.03162427]
[1734990182011,0.00088536,94170.0,94169.0,1.02662427]
[1734990182188,0.00188536,94170.0,94169.0,0.66924027]
[1734990182493,0.0240855,94170.0,94169.0,0.10898632]
[1734990182693,0.0230855,94170.0,94169.0,0.10398632]
[1734990182886,0.0010855,94170.0,94169.0,0.11798632]
[1734990183187,0.0020855,94170.0,94169.0,0.16314023]
[1734990183385,0.0020855,94170.0,94169.0,0.15414023]
[1734990183590,0.0250855,94170.0,94169.0,0.009]
[1734990183793,0.0230855,94170.0,94165.0,0.212391]
[1734990183965,8.55e-05,94170.0,94166.0,0.10398632]
[1734990184322,0.0010855,94170.0,94166.0,0.10398632]
[1734990184554,8.55e-05,94170.0,94166.0,0.31637532]
[1734990184950,8.55e-05,94170.0,94169.0,0.002]
[1734990185464,8.55e-05,94170.0,94166.0,0.31637532]
[1734990185716,0.0010855,94170.0,94166.0,0.32237532]
[1734990186159,0.0010855,94170.0,94166.0,0.10998632]
[1734990186358,0.05585105,94170.0,94169.0,0.009]
[1734990186575,0.0230855,94170.0,94169.0,0.004]
[1734990187072,0.0010855,94170.0,94169.0,0.004]
[1734990187574,0.0010855,94170.0,94169.0,0.11298632]
[1734990187857,8.55e-05,94170.0,94169.0,0.10398632]
[1734990188072,8.55e-05,94170.0,94169.0,0.10898632]
[1734990188662,8.55e-05,94170.0,94169.0,0.16266315]
[1734990189167,8.55e-05,94170.0,94169.0,0.11298632]
[1734990189392,8.55e-05,94170.0,94169.0,0.10798632]
[1734990189603,8.55e-05,94170.0,94169.0,0.10398632]
[1734990189787,0.0010855,94170.0,94169.0,0.11298632]
[1734990190221,0.0020855,94170.0,94169.0,0.11898632]
[1734990190434,0.0250855,94170.0,94169.0,0.11898632]
[1734990190635,0.0240855,94170.0,94169.0,0.10698632]
[1734990190926,0.0010855,94170.0,94169.0,0.11098632]
[1734990191117,8.55e-05,94170.0,94169.0,0.16056315]
[1734990191600,8.55e-05,94170.0,94169.0,0.15756315]
[1734990191733,8.55e-05,94170.0,94169.0,0.15856315]
[1734990191934,8.55e-05,94170.0,94169.0,0.10498632]
[1734990192160,8.55e-05,94170.0,94169.0,0.10398632]
[1734990192557,0.0010855,94170.0,94169.0,0.11298632]
[1734990192768,8.55e-05,94170.0,94169.0,0.10715732]
[1734990192967,8.55e-05,94170.0,94169.0,0.10415732]
[1734990193181,8.55e-05,94170.0,94169.0,0.10615732]
[1734990193404,8.55e-05,94170.0,94169.0,0.10415732]
[1734990193777,8.55e-05,94170.0,94169.0,0.10615732]
[1734990193976,8.55e-05,94170.0,94169.0,0.10415732]
[1734990194421,8.55e-05,94170.0,94169.0,0.10715732]
[1734990194776,0.11461405,94170.0,94169.0,0.003171]
[1734990194974,0.16431405,94170.0,94169.0,0.002171]
[1734990195180,0.17498966,94170.0,94169.0,0.004171]
[1734990195375,0.16456111,94170.0,94169.0,0.004171]
[1734990195658,0.1538855,94170.0,94169.0,0.002171]
[1734990195865,0.1538855,94170.0,94169.0,0.000171]
[1734990196107,0.1538855,94170.0,94169.0,0.003171]
[1734990196280,0.0230855,94170.0,94169.0,0.10415732]
[1734990196637,0.0270855,94170.0,94169.0,0.10415732]
[1734990197226,0.0280855,94170.0,94169.0,0.31654132]
[1734990197428,0.0050855,94170.0,94169.0,0.31654132]
[1734990198722,0.0050855,94170.0,94169.0,0.31754132]
[1734990199153,0.0050855,94170.0,94169.0,0.31654132]
[1734990199331,8.55e-05,94170.0,94169.0,0.31654132]
[1734990199538,8.55e-05,94170.0,94169.0,0.10615732]
[1734990199868,8.55e-05,94170.0,94169.0,0.10715732]
[1734990200068,8.55e-05,94170.0,94169.0,0.10615732]
[1734990200343,8.55e-05,94170.0,94169.0,0.10915732]
[1734990200576,8.55e-05,94170.0,94169.0,0.10615732]
[1734990200894,8.55e-05,94170.0,94169.0,0.03015732]
[1734990201290,8.55e-05,94170.0,94169.0,0.03515732]
[1734990201717,8.55e-05,94170.0,94169.0,0.003]
[1734990201950,0.0230855,94170.0,94169.0,0.003]
[1734990202123,0.0230855,94170.0,94169.0,0.004]
[1734990202906,0.0230855,94170.0,94159.0,0.000171]
[1734990203106,0.023,94161.0,94159.0,0.000171]
[1734990203326,0.235402,94161.0,94159.0,0.000171]
[1734990203533,0.0715,94160.0,94159.0,0.000171]
[1734990204619,0.023,94161.0,94159.0,0.000171]
[1734990205393,0.023,94161.0,94159.0,0.001171]
[1734990205918,0.023,94161.0,94159.0,0.000171]
[1734990206296,0.023,94161.0,94159.0,0.001171]
[1734990206499,0.023,94161.0,94160.0,0.10398632]
[1734990206725,8.55e-05,94170.0,94165.0,0.212392]
[1734990206925,8.55e-05,94170.0,94167.0,0.424776]
[1734990207099,8.55e-05,94170.0,94168.0,0.1050481]
[1734990207304,8.55e-05,94170.0,94169.0,0.212384]
[1734990207483,8.55e-05,94170.0,94169.0,0.31637032]
[1734990208536,8.55e-05,94170.0,94169.0,0.31837032]
[1734990208737,8.55e-05,94170.0,94169.0,0.39578495]
[1734990209316,8.55e-05,94170.0,94169.0,0.31937032]
[1734990210307,8.55e-05,94170.0,94169.0,0.31637032]
[1734990210828,0.0020855,94170.0,94169.0,0.32137032]
[1734990211033,0.0010855,94170.0,94169.0,0.32137032]
[1734990211232,0.0010855,94170.0,94169.0,0.32537032]
[1734990211434,0.0020855,94170.0,94169.0,0.33037032]
[1734990212135,8.55e-05,94170.0,94169.0,0.31637032]
[1734990212381,8.55e-05,94170.0,94169.0,0.32637032]
[1734990212382,0.0010855,94170.0,94169.0,0.32637032]
[1734990213564,8.55e-05,94170.0,94169.0,0.31937032]
[1734990213789,8.55e-05,94170.0,94169.0,0.42335664]
[1734990214110,0.0010855,94170.0,94169.0,0.32837032]
[1734990214312,0.0010855,94170.0,94169.0,0.31637032]
[1734990214538,0.0030855,94170.0,94169.0,0.32937032]
[1734990214915,0.0020855,94170.0,94169.0,0.32237032]
[1734990215427,0.0010855,94170.0,94169.0,0.31937032]
[1734990215922,0.0010855,94170.0,94169.0,0.31945582]
[1734990216915,0.0020855,94170.0,94169.0,0.32645582]
[1734990217270,0.0020855,94170.0,94169.0,0.40070177]
[1734990217473,0.0020855,94170.0,94169.0,0.40470177]
[1734990217657,8.55e-05,94170.0,94169.0,0.39770177]
[1734990217855,8.55e-05,94170.0,94169.0,0.40370177]
[1734990218086,0.0010855,94170.0,94169.0,0.32645582]
[1734990218455,0.0010855,94170.0,94169.0,0.32045582]
[1734990218659,0.0020855,94170.0,94169.0,0.32845582]
[1734990219892,8.55e-05,94170.0,94169.0,0.32045582]
[1734990220092,8.55e-05,94170.0,94169.0,0.31645582]
[1734990220296,0.0010855,94170.0,94169.0,0.32445582]
[1734990220628,8.55e-05,94170.0,94169.0,0.42444214]
[1734990221050,0.0010855,94170.0,94169.0,0.42944214]
[1734990221244,0.0010855,94170.0,94169.0,0.43444214]
[1734990221854,0.0010855,94170.0,94169.0,0.33045582]
[1734990225159,0.0010855,94170.0,94169.0,0.0140855]
[1734990226165,0.0010855,94170.0,94169.0,0.0090855]
[1734990226373,0.0010855,94170.0,94169.0,0.0110855]
[1734990226840,8.55e-05,94170.0,94169.0,0.0020855]
[1734990227077,0.01036405,94170.0,94169.0,8.55e-05]
[1734990227275,0.01036405,94170.0,94169.0,0.0060855]
[1734990227504,0.01036405,94170.0,94169.0,0.0010855]
[1734990227617,0.01036405,94170.0,94169.0,0.0020855]
[1734990228067,0.01036405,94170.0,94169.0,0.0010855]
[1734990228437,0.01036405,94170.0,94169.0,0.0030855]
[1734990228646,0.15436405,94170.0,94169.0,0.0010855]
[1734990229251,0.15436405,94170.0,94169.0,8.55e-05]
[1734990229781,0.1440855,94170.0,94169.0,8.55e-05]
[1734990230012,0.1440855,94170.0,94169.0,0.0010855]
[1734990230212,0.1440855,94170.0,94169.0,8.55e-05]
[1734990230412,0.1450855,94170.0,94169.0,8.55e-05]
[1734990230609,0.1470855,94170.0,94169.0,8.55e-05]
[1734990230949,0.1450855,94170.0,94157.0,0.1386665]
[1734990231153,0.023,94169.0,94158.0,0.03371364]
[1734990232525,0.447768,94169.0,94154.0,0.212417]
[1734990233139,0.235384,94169.0,94154.0,0.424834]
[1734990233607,0.240384,94169.0,94154.0,0.424834]
[1734990233822,0.235384,94169.0,94154.0,0.424834]
[1734990233956,0.240384,94169.0,94154.0,0.424834]
[1734990234152,0.240384,94169.0,94154.0,0.47553109]
[1734990234699,0.242384,94169.0,94154.0,0.47553109]
[1734990235319,0.007,94169.0,94165.0,0.212392]
[1734990235528,0.007,94169.0,94166.0,0.10504813]
[1734990235731,0.007,94169.0,94167.0,0.27326121]
[1734990235917,0.007,94169.0,94168.0,0.10504803]
[1734990236298,0.002,94169.0,94168.0,0.10504803]
[1734990237114,8.55e-05,94170.0,94169.0,0.212384]
[1734990237308,8.55e-05,94170.0,94169.0,0.31637032]
[1734990238238,8.55e-05,94170.0,94169.0,0.32137032]
[1734990238664,8.55e-05,94170.0,94169.0,0.39259148]
[1734990238929,8.55e-05,94170.0,94169.0,1.08309148]
[1734990239344,8.55e-05,94170.0,94169.0,1.11442013]
[1734990239544,0.0010855,94170.0,94169.0,1.12342013]
[1734990239767,8.55e-05,94170.0,94169.0,1.11442013]
[1734990240394,8.55e-05,94170.0,94169.0,1.10942013]
[1734990240549,0.0010855,94170.0,94169.0,1.12442013]
[1734990240754,5e-07,94170.0,94169.0,1.37052013]
[1734990241308,0.0813,94206.0,94205.0,0.212302]
[1734990242214,0.0813,94206.0,94203.0,0.212307]
[1734990242624,0.08139518,94206.0,94203.0,0.212307]
[1734990243941,0.08439518,94206.0,94198.0,0.212318]
[1734990244563,0.08339518,94206.0,94202.0,0.212308]
[1734990244972,0.08439518,94206.0,94202.0,0.212308]
[1734990245379,0.08339518,94206.0,94202.0,0.212308]
[1734990245592,0.08339518,94206.0,94202.0,0.214308]
[1734990245795,0.08139518,94206.0,94202.0,0.214308]
[1734990246019,0.08139518,94206.0,94202.0,0.426616]
[1734990246524,0.08339518,94206.0,94202.0,0.426616]
[1734990247304,0.08139518,94206.0,94202.0,0.426616]
[1734990247511,0.08139518,94206.0,94202.0,0.002]
[1734990248792,0.023,94204.0,94202.0,0.005]
[1734990248999,0.023,94204.0,94190.0,0.212336]
[1734990249207,0.023,94204.0,94185.0,0.212346]
[1734990249387,0.023,94204.0,94194.0,0.212327]
[1734990249590,0.212307,94203.0,94190.0,0.212335]
[1734990249807,0.24981817,94203.0,94190.0,0.212335]
[1734990250007,0.03751117,94203.0,94190.0,0.212335]
[1734990250229,0.03751117,94203.0,94194.0,0.212326]
[1734990250434,0.023,94204.0,94194.0,0.212326]
[1734990250688,0.212316,94199.0,94185.0,0.10398632]
[1734990250920,0.212334,94191.0,94170.0,0.10653811]
[1734990251157,0.07,94189.0,94171.0,0.10398632]
[1734990251360,0.023,94188.0,94169.0,0.10398632]
[1734990251560,0.023,94188.0,94168.0,0.09404586]
[1734990251792,0.023,94186.0,94169.0,8.55e-05]
[1734990251989,0.023,94186.0,94185.0,0.001]
[1734990252352,0.023,94186.0,94169.0,8.55e-05]
[1734990252353,0.212372,94175.0,94169.0,8.55e-05]
[1734990252557,0.212375,94173.0,94169.0,8.55e-05]
[1734990252754,0.424751,94173.0,94169.0,8.55e-05]
[1734990252956,0.047,94172.0,94169.0,8.55e-05]
[1734990253577,0.04709512,94172.0,94169.0,8.55e-05]
[1734990254425,0.212379,94171.0,94169.0,8.55e-05]
[1734990254842,0.212379,94171.0,94169.0,0.0010855]
[1734990255253,0.212379,94171.0,94169.0,0.0020855]
[1734990255450,0.212379,94171.0,94169.0,0.0010855]
[1734990255651,0.212379,94171.0,94169.0,8.55e-05]
[1734990255900,0.213379,94171.0,94169.0,8.55e-05]
[1734990256500,0.216379,94171.0,94169.0,8.55e-05]
[1734990257919,0.023,94170.0,94169.0,8.55e-05]
[1734990258122,0.07362402,94170.0,94169.0,8.55e-05]
[1734990258323,0.15542402,94170.0,94169.0,8.55e-05]
[1734990258604,0.30542402,94170.0,94169.0,8.55e-05]
[1734990259001,0.30642402,94170.0,94169.0,8.55e-05]
[1734990259186,0.30842402,94170.0,94169.0,8.55e-05]
[1734990259529,0.41041034,94170.0,94169.0,8.55e-05]
[1734990259907,0.15,94169.0,94141.0,0.2117015]
[1734990260110,0.212419,94154.0,94141.0,0.2117015]
[1734990261314,0.0824,94153.0,94141.0,0.2117015]
[1734990261519,0.424845,94152.0,94137.0,0.212454]
[1734990261672,0.424845,94152.0,94141.0,0.005]
[1734990261867,0.212426,94150.0,94141.0,0.002]
[1734990262124,0.212437,94146.0,94141.0,0.002]
[1734990262254,0.212437,94146.0,94124.0,0.262485]
[1734990262255,0.0485,94149.0,94124.0,0.262485]
[1734990262450,0.212436,94146.0,94128.0,0.212475]
[1734990263085,0.212436,94146.0,94132.0,0.212467]
[1734990264289,0.212446,94142.0,94131.0,0.0736415]
[1734990264485,0.212446,94142.0,94131.0,0.0746415]
[1734990264689,0.212446,94142.0,94131.0,0.0736415]
[1734990264897,0.424891,94142.0,94131.0,0.0736415]
[1734990265507,0.21751211,94142.0,94131.0,0.10225415]
[1734990265705,0.00506711,94142.0,94132.0,0.10504858]
[1734990265916,0.00506711,94142.0,94140.0,0.15]
[1734990266133,0.00806711,94142.0,94141.0,0.46749529]
[1734990266491,0.00806711,94142.0,94141.0,0.75331964]
[1734990266716,0.00706711,94142.0,94141.0,1.29381964]
[1734990266911,0.000171,94171.0,94170.0,0.212381]
[1734990267186,0.00023814,94171.0,94170.0,0.31636732]
[1734990267396,0.00023814,94171.0,94170.0,0.35591405]
[1734990268558,0.00123814,94171.0,94170.0,0.36491405]
[1734990269258,0.00123814,94171.0,94170.0,0.32536732]
[1734990269664,0.00123814,94171.0,94170.0,0.35053067]
[1734990269665,0.00223814,94171.0,94170.0,0.35053067]
[1734990269964,0.00223814,94171.0,94170.0,0.61121967]
[1734990270165,0.00223814,94171.0,94170.0,0.61421967]
[1734990270577,0.00223814,94171.0,94170.0,0.61121967]
[1734990270921,0.00223814,94171.0,94170.0,0.61621967]
[1734990271068,0.00123814,94171.0,94170.0,0.70720599]
[1734990271266,0.000171,94206.0,94171.0,0.5405]
[1734990271468,0.00032771,94206.0,94201.0,0.212311]
[1734990271719,0.00032771,94206.0,94201.0,0.424622]
[1734990272129,0.00032771,94206.0,94202.0,0.10398632]
[1734990272330,0.00032771,94206.0,94203.0,0.424614]
[1734990272501,0.00032771,94206.0,94205.0,0.212302]
[1734990272708,0.00032771,94206.0,94205.0,0.31628832]
[1734990273338,0.00532771,94206.0,94205.0,0.31628832]
[1734990273715,0.00032771,94206.0,94205.0,0.39037925]
[1734990274036,0.00032771,94206.0,94205.0,0.40117444]
[1734990274251,0.00032771,94206.0,94205.0,0.32708351]
[1734990274458,0.00032771,94206.0,94205.0,0.32908351]
[1734990275001,0.00132771,94206.0,94205.0,0.33808351]
[1734990275199,0.00132771,94206.0,94205.0,0.32908351]
[1734990275430,0.00132771,94206.0,94205.0,0.33808351]
[1734990275631,0.00232771,94206.0,94205.0,0.33808351]
[1734990275828,0.00132771,94206.0,94205.0,0.32908351]
[1734990276129,0.00232771,94206.0,94205.0,0.33608351]
[1734990276362,0.00232771,94206.0,94205.0,0.34108351]
[1734990276875,0.00232771,94206.0,94205.0,0.33608351]
[1734990277083,8.54e-05,94225.0,94224.0,0.21226]
[1734990277438,8.54e-05,94225.0,94224.0,0.31624632]
[1734990278312,8.54e-05,94225.0,94224.0,0.34012071]
[1734990278716,8.54e-05,94225.0,94224.0,0.33712071]
[1734990278926,0.0010854,94225.0,94224.0,0.34512071]
[1734990279546,0.0010854,94225.0,94224.0,0.34812071]
[1734990279772,0.0011581,94225.0,94224.0,0.34812071]
[1734990279931,0.0011581,94225.0,94224.0,0.35870263]
[1734990280587,0.0011581,94225.0,94224.0,0.33782824]
[1734990281243,0.0011581,94225.0,94224.0,0.32724632]
[1734990281865,0.0001581,94225.0,94224.0,0.31924632]
[1734990282077,0.0001581,94225.0,94224.0,0.33597961]
[1734990282304,0.0001581,94225.0,94224.0,0.31624632]
[1734990282510,0.0001581,94225.0,94224.0,0.31824632]
[1734990282724,0.0001581,94225.0,94224.0,0.32424632]
[1734990283124,0.0001581,94225.0,94224.0,0.32224632]
[1734990283347,0.0001581,94225.0,94224.0,0.32424632]
[1734990284003,0.0001581,94225.0,94224.0,0.31824632]
[1734990284208,0.0001581,94225.0,94224.0,0.32424632]
[1734990284615,0.0001581,94225.0,94224.0,0.31824632]
[1734990285031,0.0001581,94225.0,94224.0,0.32224632]
[1734990285696,0.0001581,94225.0,94224.0,0.31824632]
[1734990285896,0.0001581,94225.0,94224.0,0.31624632]
[1734990286305,0.0001581,94225.0,94224.0,0.31724632]
[1734990286718,0.0001581,94225.0,94224.0,0.31624632]
[1734990287046,0.0001581,94225.0,94224.0,0.31724632]
[1734990287443,0.0001581,94225.0,94224.0,0.001]
[1734990287653,0.0001581,94225.0,94224.0,0.004]
[1734990287983,0.0001581,94225.0,94224.0,0.001]
[1734990288149,0.0001581,94225.0,94224.0,0.003]
[1734990288361,0.0001581,94225.0,94224.0,0.002]
[1734990289120,0.0001581,94225.0,94222.0,0.212262]
[1734990289325,0.0011581,94225.0,94222.0,0.212262]
[1734990289678,0.0011581,94225.0,94224.0,0.21226]
[1734990289883,0.0001581,94225.0,94224.0,0.21226]
[1734990290321,0.0001581,94225.0,94224.0,0.21326]
[1734990290696,0.0001581,94225.0,94224.0,0.001]
[1734990290917,0.0001581,94225.0,94224.0,0.004]
[1734990291100,0.0001581,94225.0,94216.0,0.212278]
[1734990291325,0.0001581,94225.0,94217.0,0.10398632]
[1734990291525,0.0001581,94225.0,94224.0,0.003]
[1734990291729,0.0001581,94225.0,94224.0,0.001]
[1734990292144,0.0001581,94225.0,94218.0,0.212273]
[1734990292453,0.0001581,94225.0,94219.0,0.10398632]
[1734990292628,0.0011581,94225.0,94219.0,0.10398632]
[1734990293035,0.03455716,94225.0,94213.0,0.212284]
[1734990293234,0.0001581,94225.0,94213.0,0.212284]
[1734990293406,0.21226,94224.0,94213.0,0.212284]
[1734990293590,0.21226,94224.0,94214.0,0.10398632]
[1734990294047,0.212262,94223.0,94210.0,0.10653811]
[1734990294221,0.03286251,94222.0,94211.0,0.212289]
[1734990295234,0.212266,94221.0,94205.0,0.212302]
[1734990295766,0.03286251,94222.0,94209.0,0.424586]
[1734990295971,0.212262,94223.0,94209.0,0.424586]
[1734990296674,0.212262,94223.0,94213.0,0.212284]
[1734990297127,0.0001581,94225.0,94214.0,0.1050477]
[1734990297301,0.0001581,94225.0,94222.0,0.212263]
[1734990297891,0.002,94223.0,94222.0,0.212263]
[1734990298799,0.0001581,94225.0,94222.0,0.212263]
[1734990299437,0.0001581,94225.0,94220.0,0.212267]
[1734990300056,0.0001581,94225.0,94222.0,0.001]
[1734990300359,0.0001581,94225.0,94215.0,0.21228]
[1734990300574,0.0001581,94225.0,94219.0,0.21227]
[1734990300974,0.02140666,94225.0,94219.0,0.21227]
[1734990301792,0.0001581,94225.0,94219.0,0.21227]
[1734990302338,0.0001581,94225.0,94223.0,0.212262]
[1734990303574,0.0001581,94225.0,94223.0,0.213262]
[1734990304038,0.0001581,94225.0,94224.0,0.042496]
[1734990305405,0.0001581,94225.0,94224.0,0.043496]
[1734990305804,0.0001581,94225.0,94224.0,0.042496]
[1734990306010,0.0001581,94225.0,94224.0,0.043496]
[1734990306621,0.0001581,94225.0,94224.0,0.045496]
[1734990307264,0.0001581,94225.0,94224.0,0.15054352]
[1734990307438,0.0001581,94225.0,94224.0,0.14748232]
[1734990307639,0.0001581,94225.0,94224.0,0.18096934]
[1734990307887,0.0001581,94225.0,94224.0,0.14848232]
[1734990308097,0.0001581,94225.0,94224.0,0.14948232]
[1734990308464,0.0001581,94225.0,94224.0,0.044496]
[1734990308871,0.0001581,94225.0,94224.0,0.045496]
[1734990309323,0.0001581,94225.0,94224.0,0.044496]
[1734990309524,0.0001581,94225.0,94224.0,0.043496]
[1734990309931,0.0001581,94225.0,94224.0,0.045496]
[1734990310506,0.0001581,94225.0,94224.0,0.15054356]
[1734990310713,0.0001581,94225.0,94224.0,0.14748232]
[1734990310960,0.0001581,94225.0,94224.0,0.14948232]
[1734990311154,0.0001581,94225.0,94224.0,0.15048232]
[1734990311325,0.0001581,94225.0,94224.0,0.18298021]
[1734990311533,0.0001581,94225.0,94224.0,0.14948232]
[1734990311737,0.0001581,94225.0,94224.0,0.18303691]
[1734990311942,0.0001581,94225.0,94224.0,0.18403691]
[1734990312556,0.0001581,94225.0,94224.0,0.18103691]
[1734990312754,0.0001581,94225.0,94224.0,0.14748232]
[1734990312953,0.0001581,94225.0,94224.0,0.043496]
[1734990313745,0.0001581,94225.0,94224.0,0.255756]
[1734990313936,0.0001581,94225.0,94224.0,0.046496]
[1734990314139,0.0001581,94225.0,94224.0,0.042496]
[1734990314531,0.0756581,94225.0,94224.0,0.045496]
[1734990314737,0.10445716,94225.0,94224.0,0.045496]
[1734990315064,0.10445716,94225.0,94224.0,0.002]
[1734990315277,0.0756581,94225.0,94224.0,0.003]
[1734990316320,0.1455581,94225.0,94224.0,0.001]
[1734990316563,0.49954442,94225.0,94224.0,0.001]
[1734990316770,0.49954442,94225.0,94224.0,0.003]
[1734990317199,0.39954442,94225.0,94224.0,0.002]
[1734990317704,0.39954442,94225.0,94220.0,8.54e-05]
[1734990317705,0.59752,94224.0,94220.0,8.54e-05]
[1734990318228,0.36226,94224.0,94220.0,8.54e-05]
[1734990318701,0.15,94224.0,94220.0,8.54e-05]
[1734990319039,0.318466,94221.0,94220.0,8.54e-05]
[1734990320784,0.320466,94221.0,94220.0,8.54e-05]
[1734990321192,0.321466,94221.0,94220.0,8.54e-05]
[1734990322441,0.33209587,94221.0,94220.0,8.54e-05]
[1734990323431,0.43608219,94221.0,94220.0,8.54e-05]
[1734990325559,0.73288219,94221.0,94220.0,8.54e-05]
[1734990325788,0.607398,94207.0,94206.0,8.55e-05]
[1734990325983,0.71138432,94207.0,94206.0,8.55e-05]
[1734990326210,0.212359,94180.0,94179.0,0.09325806]
[1734990326420,0.41464532,94180.0,94179.0,0.09325806]
[1734990326717,0.66464532,94180.0,94179.0,0.09325806]
[1734990326918,0.71144532,94180.0,94179.0,0.09325806]
[1734990327119,0.310679,94171.0,94170.0,8.55e-05]
[1734990327341,0.41466532,94171.0,94170.0,8.55e-05]
[1734990327541,0.41466532,94171.0,94170.0,0.00024221]
[1734990328557,0.56466532,94171.0,94170.0,0.00024221]
[1734990328772,0.61146532,94171.0,94170.0,0.00024221]
[1734990330029,0.212426,94151.0,94137.0,0.21178171]
[1734990330238,0.287726,94151.0,94138.0,0.10398632]
[1734990330451,0.212435,94147.0,94137.0,0.00052729]
[1734990331070,0.424891,94142.0,94138.0,0.042533]
[1734990331269,0.212445,94142.0,94138.0,0.042533]
[1734990332361,0.262137,94146.0,94138.0,0.042533]
[1734990332531,0.003,94147.0,94139.0,0.10398632]
[1734990332730,0.001,94147.0,94139.0,0.10398632]
[1734990332965,0.001,94147.0,94144.0,0.212439]
[1734990333318,0.212406,94160.0,94144.0,0.424879]
[1734990333518,0.212406,94160.0,94149.0,0.212428]
[1734990334169,0.212397,94164.0,94150.0,0.10653811]
[1734990334456,0.212384,94169.0,94150.0,0.21052443]
[1734990334611,0.212384,94169.0,94157.0,0.212409]
[1734990335639,0.212366,94177.0,94158.0,0.212408]
[1734990336006,0.212354,94182.0,94166.0,0.212389]
[1734990336204,0.212343,94187.0,94167.0,0.10504827]
[1734990336456,0.15,94186.0,94174.0,0.21237]
[1734990336877,0.212348,94185.0,94170.0,0.212381]
[1734990337199,0.004,94182.0,94170.0,0.212381]
[1734990337643,0.004,94182.0,94170.0,0.424762]
[1734990338011,0.004,94182.0,94180.0,0.212358]
[1734990338946,0.004,94182.0,94176.0,0.212366]
[1734990339196,0.212337,94190.0,94178.0,0.212363]
[1734990339359,0.212337,94190.0,94178.0,0.31634932]
[1734990340678,0.216337,94190.0,94178.0,0.31634932]
[1734990340894,0.0439267,94189.0,94178.0,0.31634932]
[1734990341096,0.004,94190.0,94179.0,0.21158615]
[1734990341311,0.004,94190.0,94180.0,0.0762]
[1734990341494,0.004,94190.0,94187.0,0.212343]
[1734990341689,0.004,94190.0,94189.0,0.212339]
[1734990341919,0.004,94190.0,94189.0,0.31632532]
[1734990342119,0.001,94190.0,94189.0,0.31632532]
[1734990342368,0.002,94190.0,94189.0,0.31632532]
[1734990342615,0.001,94190.0,94189.0,0.34532544]
[1734990342792,0.259762,94223.0,94189.0,0.13298644]
[1734990342793,0.01039853,94222.0,94189.0,0.13298644]
[1734990343026,0.25992002,94223.0,94211.0,0.212289]
[1734990343237,0.04765802,94223.0,94211.0,0.212289]
[1734990343446,0.25992102,94223.0,94211.0,0.212289]
[1734990343631,0.04765802,94223.0,94211.0,0.212289]
[1734990344342,0.00015802,94223.0,94211.0,0.212289]
[1734990344538,0.212264,94222.0,94211.0,0.212289]
[1734990344690,0.00215802,94223.0,94211.0,0.212289]
[1734990345092,0.21842102,94223.0,94211.0,0.212289]
[1734990345521,0.00215802,94223.0,94211.0,0.212289]
[1734990345699,0.004,94222.0,94215.0,0.212278]
[1734990346102,0.004,94222.0,94215.0,0.0424567]
[1734990346316,0.004,94222.0,94207.0,0.00106137]
[1734990346521,0.002,94222.0,94210.0,0.10653811]
[1734990346711,0.002,94222.0,94220.0,0.212268]
[1734990346918,0.003,94222.0,94220.0,0.212268]
[1734990347329,0.004,94222.0,94220.0,0.212268]
[1734990347762,0.003,94222.0,94220.0,0.212268]
[1734990347965,0.003,94222.0,94220.0,0.213268]
[1734990348163,0.00015802,94223.0,94220.0,0.213268]
[1734990348369,0.00015802,94223.0,94220.0,0.001]